bitfinex/quotes_SOLUSD_20230103
["timestamp","ask_amount","ask_price","bid_price","bid_amount"]
[1672758780969,312.0,12.514,12.508,30.0]
[1672758781174,312.0,12.514,12.512,165.32093903]
[1672758782549,30.0,12.513,12.507,165.32093903]
[1672758783395,275.0,12.517,12.507,165.32093903]
[1672758783618,245.0,12.513,12.507,165.32093903]
[1672758784042,245.0,12.511,12.507,165.32093903]
[1672758784233,307.79676104,12.512,12.507,165.32093903]
[1672758784444,30.0,12.532,12.509,165.32093903]
[1672758784665,30.0,12.532,12.507,165.32093903]
[1672758784666,62.79676104,12.517,12.507,165.32093903]
[1672758784988,62.79676104,12.517,12.508,165.32093903]
[1672758785394,245.0,12.516,12.508,165.32093903]
[1672758785623,312.0,12.509,12.508,165.32093903]
[1672758786544,557.0,12.509,12.508,165.32093903]
[1672758786759,557.0,12.509,12.504,165.96196542]
[1672758786984,245.0,12.508,12.504,0.64102639]
[1672758787186,30.0,12.507,12.504,0.64102639]
[1672758787595,30.0,12.507,12.504,0.00102639]
[1672758787805,245.0,12.506,12.504,0.00102639]
[1672758788228,30.0,12.505,12.504,0.00102639]
[1672758788437,30.0,12.507,12.504,0.00102639]
[1672758788652,557.0,12.509,12.504,0.00102639]
[1672758788868,312.0,12.509,12.506,165.32093903]
[1672758789702,245.0,12.508,12.506,165.32093903]
[1672758789906,245.0,12.508,12.504,0.00102639]
[1672758790118,30.0,12.507,12.504,0.00102639]
[1672758791297,275.0,12.507,12.504,0.00102639]
[1672758791702,245.0,12.507,12.504,0.00102639]
[1672758792129,245.0,12.507,12.504,165.32196542]
[1672758792341,245.0,12.507,12.505,165.32093903]
[1672758792775,30.0,12.506,12.505,165.32093903]
[1672758792977,30.0,12.506,12.504,0.00102639]
[1672758793698,312.0,12.505,12.504,0.00102639]
[1672758793923,488.28623139,12.505,12.504,0.00102639]
[1672758798245,488.28623139,12.505,12.504,82.88146273]
[1672758798456,488.28623139,12.505,12.504,0.00102639]
[1672758801709,379.08703139,12.505,12.504,82.86884881]
[1672758801897,30.0,12.522,12.505,1.80296861]
[1672758802109,30.0,12.522,12.51,140.84995405]
[1672758802440,64.16543461,12.518,12.51,140.84995405]
[1672758802659,312.0,12.511,12.51,140.84995405]
[1672758802866,557.0,12.511,12.508,165.63990811]
[1672758803083,557.0,12.511,12.51,82.78742208]
[1672758803387,557.0,12.511,12.51,82.78536765]
[1672758803794,557.0,12.511,12.508,82.78536765]
[1672758804007,557.0,12.511,12.504,165.6409345]
[1672758804008,30.0,12.51,12.509,82.78536765]
[1672758804547,326.44916386,12.51,12.509,82.78536765]
[1672758805061,30.0,12.507,12.506,82.78536765]
[1672758805276,30.0,12.507,12.504,82.78639404]
[1672758805597,30.0,12.507,12.496,248.41468743]
[1672758805598,245.0,12.506,12.496,248.41468743]
[1672758805912,30.0,12.505,12.5,11.55]
[1672758806104,245.0,12.504,12.5,11.55]
[1672758806423,52.6299711,12.501,12.499,12.65987586]
[1672758806639,87.46398897,12.503,12.491,30.0]
[1672758806850,87.46398897,12.503,12.493,30.0]
[1672758807065,87.46398897,12.503,12.494,1.42986282]
[1672758807277,332.46398897,12.503,12.494,1.42974838]
[1672758807591,87.46398897,12.502,12.494,1.42974838]
[1672758807998,332.46398897,12.502,12.493,248.41468743]
[1672758808219,332.46398897,12.502,12.494,30.0]
[1672758808427,87.46398897,12.501,12.494,30.0]
[1672758808838,10.268324,12.517,12.503,8.74639889]
[1672758809049,87.46398897,12.514,12.51,58.15]
[1672758809255,87.46398897,12.514,12.503,8.74639889]
[1672758809465,275.0,12.513,12.503,8.74639889]
[1672758809674,245.0,12.513,12.503,8.74639889]
[1672758809898,30.0,12.511,12.503,8.74639889]
[1672758810320,294.43534594,12.51,12.503,8.74639889]
[1672758810533,173.13534594,12.51,12.503,8.74639889]
[1672758810730,312.0,12.504,12.503,8.74639889]
[1672758811468,10.268324,12.517,12.503,8.74639889]
[1672758811687,30.0,12.514,12.51,58.03]
[1672758812001,60.0,12.513,12.503,8.74639889]
[1672758812205,30.0,12.512,12.503,8.74639889]
[1672758812404,26.07,12.504,12.503,8.74639889]
[1672758813266,30.0,12.51,12.503,8.74639889]
[1672758814083,30.0,12.514,12.503,8.74639889]
[1672758815250,60.0,12.513,12.503,8.74639889]
[1672758815461,30.0,12.512,12.503,8.74639889]
[1672758815999,30.0,12.51,12.503,8.74639889]
[1672758816315,26.07,12.507,12.503,8.74639889]
[1672758818839,13.41012414,12.507,12.504,12.65987586]
[1672758819248,70.248324,12.517,12.503,8.74639889]
[1672758819567,10.268324,12.517,12.511,1.34101241]
[1672758819991,312.0,12.514,12.511,1.34101241]
[1672758820304,30.0,12.513,12.511,1.34101241]
[1672758823037,312.0,12.514,12.511,1.34101241]
[1672758823240,10.268324,12.517,12.511,1.34101241]
[1672758824921,10.268324,12.517,12.511,31.34101241]
[1672758826490,312.0,12.512,12.511,31.34101241]
[1672758827223,312.0,12.512,12.511,1.34101241]
[1672758828512,312.0,12.512,12.511,31.34101241]
[1672758829761,312.0,12.512,12.511,0.00101241]
[1672758829762,372.0,12.512,12.511,0.00101241]
[1672758829976,312.0,12.512,12.511,0.00101241]
[1672758830381,66.11225053,12.517,12.514,31.19999999]
[1672758830590,119.76988126,12.548,12.514,31.19999999]
[1672758830591,42.94637439,12.547,12.514,31.19999999]
[1672758830811,89.91,12.532,12.514,31.19999999]
[1672758831025,89.91,12.532,12.514,61.19999999]
[1672758831550,30.0,12.53,12.514,61.19999999]
[1672758831742,59.92,12.529,12.52,57.8]
[1672758831955,30.0,12.528,12.52,57.82]
[1672758832164,59.93,12.527,12.52,57.82]
[1672758832390,30.0,12.526,12.52,57.82]
[1672758832706,30.0,12.526,12.52,11.62]
[1672758833448,30.0,12.524,12.52,11.62]
[1672758833639,30.0,12.524,12.514,61.19999999]
[1672758834494,59.95,12.523,12.514,61.19999999]
[1672758834812,59.95,12.523,12.515,30.0]
[1672758835013,59.95,12.524,12.515,30.0]
[1672758835223,312.0,12.526,12.515,30.0]
[1672758835551,312.0,12.526,12.52,57.83]
[1672758835755,312.0,12.526,12.52,87.83]
[1672758835977,59.94,12.525,12.52,87.83]
[1672758836159,89.94,12.525,12.52,87.83]
[1672758836496,30.0,12.524,12.52,87.83]
[1672758836698,30.0,12.524,12.52,30.0]
[1672758836900,30.0,12.524,12.514,31.19999999]
[1672758837101,312.0,12.526,12.516,30.0]
[1672758837317,312.0,12.526,12.52,57.83]
[1672758837947,312.0,12.526,12.521,30.0]
[1672758838166,312.0,12.526,12.52,87.83]
[1672758838374,59.89,12.536,12.52,87.83]
[1672758838573,89.91,12.532,12.52,87.83]
[1672758839023,30.0,12.532,12.521,30.0]
[1672758839211,139.1174,12.532,12.521,30.0]
[1672758839738,199.0274,12.532,12.521,30.0]
[1672758841008,59.91,12.532,12.521,30.0]
[1672758841417,109.1174,12.545,12.521,30.0]
[1672758841418,312.0,12.522,12.521,30.0]
[1672758843749,307.0,12.522,12.521,30.0]
[1672758843960,0.0015291,12.533,12.524,817.7]
[1672758844276,0.0015291,12.533,12.523,30.69999999]
[1672758844588,0.0015291,12.533,12.524,30.0]
[1672758844806,312.0,12.525,12.524,30.0]
[1672758844994,312.0,12.525,12.524,60.0]
[1672758845437,0.0015291,12.533,12.525,50.0]
[1672758845746,0.0015291,12.533,12.525,80.0]
[1672758846580,0.0015291,12.533,12.526,847.7]
[1672758846798,0.0015291,12.533,12.527,132.69215627]
[1672758847004,0.0015291,12.533,12.527,950.39215627]
[1672758847203,0.0015291,12.533,12.529,130.12360788]
[1672758847416,0.0015291,12.533,12.531,130.13971324]
[1672758847626,0.0015291,12.533,12.532,164.22477783]
[1672758848459,0.0015291,12.533,12.532,154.22477783]
[1672758848667,312.0,12.56,12.534,138.35213957]
[1672758848885,312.0,12.56,12.536,139.67412393]
[1672758849307,312.0,12.56,12.541,133.12518722]
[1672758849634,49.95840448,12.559,12.542,30.0]
[1672758849828,116.4697,12.565,12.543,136.92975265]
[1672758850047,89.76,12.564,12.543,136.92975265]
[1672758850246,14.86311266,12.565,12.542,30.0]
[1672758850460,124.0015291,12.58,12.543,30.0]
[1672758850778,59.76,12.564,12.544,30.0]
[1672758851106,57.68258857,12.57,12.545,30.0]
[1672758851299,57.68258857,12.57,12.55,11.52]
[1672758851504,146.09738867,12.569,12.55,11.52]
[1672758851735,146.09738867,12.569,12.55,41.52]
[1672758851939,132.83018532,12.568,12.55,41.52]
[1672758852357,30.0,12.566,12.55,30.0]
[1672758852694,282.0,12.551,12.55,30.0]
[1672758852906,282.0,12.551,12.545,30.0]
[1672758853415,282.0,12.551,12.54,57.67]
[1672758853824,282.0,12.551,12.55,30.0]
[1672758854030,282.0,12.551,12.541,30.0]
[1672758854987,282.0,12.551,12.55,30.0]
[1672758855499,43.39061048,12.555,12.551,255.92]
[1672758855709,96.9315291,12.58,12.552,59.81]
[1672758856257,96.9315291,12.58,12.553,30.0]
[1672758856460,96.9315291,12.58,12.554,59.8]
[1672758856672,96.9315291,12.58,12.56,26.9]
[1672758856885,96.9315291,12.58,12.562,30.0]
[1672758857080,96.9315291,12.58,12.563,59.76]
[1672758857291,96.9315291,12.58,12.564,30.0]
[1672758857505,96.9315291,12.58,12.565,59.75]
[1672758857939,96.9315291,12.58,12.567,30.0]
[1672758858157,96.9315291,12.58,12.568,59.74]
[1672758858369,305.91421918,12.569,12.568,59.74]
[1672758858577,361.99421918,12.569,12.567,59.74]
[1672758858788,44.29326326,12.579,12.567,59.74]
[1672758858985,44.29326326,12.579,12.57,5.39]
[1672758859196,44.29326326,12.579,12.571,59.72]
[1672758859416,44.29326326,12.579,12.572,30.0]
[1672758859616,44.29326326,12.579,12.573,59.71]
[1672758859830,44.29326326,12.579,12.573,30.0]
[1672758860047,96.55545897,12.579,12.573,30.0]
[1672758860258,44.29326326,12.579,12.573,30.0]
[1672758860788,44.29326326,12.579,12.574,59.71]
[1672758860990,44.29326326,12.579,12.575,30.0]
[1672758861198,105.09212564,12.579,12.575,30.0]
[1672758861396,105.09212564,12.579,12.576,89.7]
[1672758861606,312.0,12.579,12.576,30.0]
[1672758861825,96.9315291,12.58,12.577,59.69]
[1672758862034,96.9315291,12.58,12.577,89.69]
[1672758862035,0.0015291,12.58,12.577,89.69]
[1672758862348,0.0015291,12.58,12.578,30.0]
[1672758862558,0.0015291,12.58,12.579,59.2733]
[1672758862979,100.0,12.6,12.58,29.9984709]
[1672758863190,42.21648564,12.599,12.58,40.7584709]
[1672758863401,42.21648564,12.599,12.581,89.68]
[1672758863617,42.21648564,12.599,12.59,5.39]
[1672758864028,42.21648564,12.599,12.59,35.39]
[1672758864973,312.0,12.591,12.59,35.39]
[1672758865220,803.70649488,12.591,12.59,30.0]
[1672758865413,850.87106677,12.591,12.59,30.0]
[1672758865732,850.96092659,12.591,12.59,30.0]
[1672758865916,896.63442835,12.591,12.59,30.0]
[1672758866126,404.92793347,12.591,12.59,30.0]
[1672758866338,896.63442835,12.591,12.59,30.0]
[1672758866765,491.70649488,12.591,12.59,30.0]
[1672758866972,491.70649488,12.591,12.59,89.63]
[1672758867178,471.70649488,12.591,12.59,89.63]
[1672758867394,441.70649488,12.591,12.59,30.0]
[1672758867823,441.70649488,12.591,12.585,30.0]
[1672758867824,435.70649488,12.591,12.585,30.0]
[1672758868032,435.70649488,12.591,12.586,59.65]
[1672758868351,271.61449488,12.591,12.587,30.0]
[1672758868556,649.4679795,12.592,12.589,30.0]
[1672758868751,0.00146248,12.592,12.591,60.0]
[1672758868979,111.3884,12.624,12.592,166.39318311]
[1672758869175,111.3884,12.624,12.593,344.82695492]
[1672758869392,111.3884,12.624,12.6,167.24]
[1672758869606,312.0,12.61,12.601,794.84960089]
[1672758869818,61.6878972,12.614,12.611,134.37637115]
[1672758870020,61.6878972,12.614,12.613,131.92591015]
[1672758870229,0.0078972,12.614,12.611,30.0]
[1672758870437,30.0,12.638,12.612,229.65855982]
[1672758870767,35.35158739,12.631,12.62,26.93]
[1672758871179,137.44729779,12.626,12.62,5.37]
[1672758871393,288.28521569,12.626,12.62,5.37]
[1672758871601,288.28521569,12.626,12.613,30.0]
[1672758871808,288.28521569,12.626,12.62,5.39]
[1672758872235,30.0,12.625,12.613,30.0]
[1672758872428,70.99052482,12.625,12.613,30.0]
[1672758872643,103.56584928,12.624,12.6,26.91]
[1672758872862,103.56584928,12.624,12.605,30.0]
[1672758873193,30.0,12.622,12.605,30.0]
[1672758873621,102.37822732,12.621,12.61,5.39]
[1672758874019,102.37822732,12.62,12.61,5.39]
[1672758874344,52.83308995,12.62,12.61,5.39]
[1672758874562,49.54513737,12.619,12.611,30.0]
[1672758874766,49.54513737,12.619,12.612,30.0]
[1672758875176,247.769447,12.626,12.612,30.0]
[1672758875395,247.769447,12.626,12.62,32.33]
[1672758875592,242.319447,12.626,12.621,30.0]
[1672758875805,178.629447,12.626,12.621,30.0]
[1672758876029,120.0,12.658,12.627,62.7521199]
[1672758876226,826.61117337,12.665,12.629,138.38998853]
[1672758876227,109.8054,12.657,12.629,138.38998853]
[1672758876434,826.61117337,12.665,12.63,59.44]
[1672758876643,942.37327337,12.665,12.634,0.35887577]
[1672758876860,39.16764279,12.656,12.65,5.4]
[1672758877060,39.16764279,12.656,12.65,5.34]
[1672758877275,39.16764279,12.656,12.64,5.4]
[1672758877480,29.16764279,12.656,12.64,5.36]
[1672758877707,50.06559014,12.656,12.64,26.9]
[1672758877905,43.70541202,12.655,12.635,30.0]
[1672758878118,30.0,12.654,12.635,30.0]
[1672758878435,53.23874536,12.653,12.63,5.41]
[1672758878647,110.41100217,12.653,12.63,5.41]
[1672758878856,30.0,12.651,12.63,5.41]
[1672758879073,312.0,12.631,12.63,5.41]
[1672758879283,312.0,12.631,12.61,53.93]
[1672758879284,312.0,12.631,12.612,321.58930444]
[1672758879491,386.99744392,12.631,12.622,30.0]
[1672758879708,473.62851689,12.631,12.622,30.0]
[1672758879911,11.62851689,12.631,12.622,30.0]
[1672758880123,55.94715119,12.631,12.622,30.0]
[1672758880329,55.94715119,12.631,12.623,30.0]
[1672758880538,115.7621,12.65,12.625,30.0]
[1672758880753,115.7621,12.65,12.64,5.38]
[1672758880968,0.5,12.659,12.64,10.75]
[1672758881165,0.5,12.659,12.64,5.37]
[1672758881372,40.98579154,12.654,12.65,5.34]
[1672758881604,10.77063186,12.648,12.64,80.84]
[1672758881925,10.77063186,12.648,12.642,30.0]
[1672758882114,0.5,12.659,12.644,30.0]
[1672758882320,0.5,12.659,12.646,30.0]
[1672758882530,0.5,12.659,12.65,26.51448]
[1672758882753,0.5,12.659,12.651,59.35]
[1672758882962,44.408706,12.666,12.651,58.94448]
[1672758883181,44.408706,12.666,12.66,32.34]
[1672758883384,0.008706,12.666,12.661,59.3]
[1672758883800,0.008706,12.666,12.662,30.0]
[1672758884038,0.008706,12.666,12.663,59.29]
[1672758884442,0.008706,12.666,12.662,54.29]
[1672758884668,0.008706,12.666,12.653,59.34]
[1672758884879,0.008706,12.666,12.654,30.0]
[1672758885194,0.008706,12.666,12.66,166.98]
[1672758885394,85.99730319,12.673,12.661,59.3]
[1672758885589,85.99730319,12.673,12.66,26.93]
[1672758885935,53.14380721,12.672,12.66,26.93]
[1672758886121,53.14380721,12.672,12.66,5.37]
[1672758886327,53.14380721,12.672,12.66,26.93]
[1672758886963,53.14380721,12.672,12.66,80.83]
[1672758887183,53.14380721,12.672,12.661,59.3]
[1672758887395,381.9875694,12.673,12.661,59.3]
[1672758887593,421.40365434,12.673,12.66,26.93]
[1672758887798,421.40365434,12.673,12.65,5.37]
[1672758888008,80.05694176,12.671,12.652,30.0]
[1672758888444,50.05694176,12.669,12.652,30.0]
[1672758888850,312.0,12.653,12.65,5.39]
[1672758889064,312.0,12.653,12.652,30.0]
[1672758889824,50.05694176,12.665,12.641,59.39]
[1672758890010,52.84971583,12.653,12.642,30.0]
[1672758890222,52.84971583,12.653,12.643,89.38]
[1672758890969,55.75655372,12.657,12.643,89.38]
[1672758891292,55.75655372,12.652,12.643,30.0]
[1672758891691,54.92104916,12.651,12.643,30.0]
[1672758892213,55.58322039,12.65,12.643,30.0]
[1672758892639,101.14260989,12.649,12.63,398.3]
[1672758892852,101.14260989,12.649,12.631,59.44]
[1672758892853,58.2143825,12.649,12.631,59.44]
[1672758893062,109.87347713,12.648,12.632,30.0]
[1672758893265,109.87347713,12.648,12.64,26.96]
[1672758893471,51.04379142,12.647,12.641,59.39]
[1672758893686,51.04379142,12.647,12.643,30.0]
[1672758893898,51.04379142,12.647,12.644,59.38]
[1672758894216,116.35,12.637,12.618,138.40771455]
[1672758894546,54.38307632,12.646,12.629,30.0]
[1672758894547,57.6488924,12.636,12.629,30.0]
[1672758894741,1.1100065,12.636,12.629,30.0]
[1672758894946,38.03271321,12.638,12.629,30.0]
[1672758895160,57.6488924,12.637,12.63,59.44]
[1672758895372,38.03271321,12.638,12.629,30.0]
[1672758895586,57.6488924,12.643,12.629,30.0]
[1672758895793,77.46192209,12.637,12.629,30.0]
[1672758896008,57.6488924,12.636,12.63,59.44]
[1672758896218,57.6488924,12.636,12.632,30.0]
[1672758896534,46.78604654,12.637,12.621,59.49]
[1672758896731,46.85607571,12.633,12.621,59.49]
[1672758896946,5.39,12.63,12.618,59.5]
[1672758897153,47.14574505,12.629,12.624,30.0]
[1672758897376,137.67175985,12.629,12.625,59.47]
[1672758897576,62.10349269,12.628,12.625,59.47]
[1672758897792,90.5260148,12.628,12.625,59.47]
[1672758898001,62.10349269,12.628,12.625,59.47]
[1672758898213,30.0,12.634,12.624,30.0]
[1672758898214,62.10349269,12.627,12.624,30.0]
[1672758898416,47.54318264,12.626,12.6,26.91]
[1672758898630,47.54318264,12.626,12.601,30.0]
[1672758898939,312.0,12.602,12.6,26.91]
[1672758899149,59.25139889,12.624,12.606,31.19999999]
[1672758899360,59.25139889,12.624,12.607,21.31131548]
[1672758899685,28.42252211,12.623,12.61,26.9]
[1672758899889,59.25139889,12.633,12.612,30.0]
[1672758900106,59.25139889,12.637,12.614,30.0]
[1672758900418,37.66367477,12.629,12.615,59.51]
[1672758900626,59.25139889,12.641,12.62,16.18]
[1672758900627,67.65015936,12.636,12.62,16.18]
[1672758900835,37.66367477,12.64,12.63,5.38]
[1672758901035,67.65015936,12.635,12.631,59.44]
[1672758901250,5.38,12.63,12.621,59.49]
[1672758901681,67.65015936,12.635,12.631,0.00045481]
[1672758901881,30.0,12.634,12.611,59.53]
[1672758902088,312.0,12.612,12.611,59.53]
[1672758902301,312.0,12.612,12.611,40.85728494]
[1672758902520,312.0,12.612,12.611,59.53]
[1672758902724,344.19367477,12.612,12.607,59.55]
[1672758902929,58.98654919,12.617,12.607,59.55]
[1672758903165,58.98654919,12.617,12.61,26.93]
[1672758903350,30.0,12.634,12.611,59.53]
[1672758903682,66.89931315,12.633,12.62,5.39]
[1672758903996,66.89931315,12.633,12.621,59.49]
[1672758905029,66.89931315,12.633,12.621,57.2617066]
[1672758905973,30.0,12.649,12.621,57.2617066]
[1672758906178,66.41441315,12.644,12.63,5.39]
[1672758906521,30.0,12.643,12.63,5.39]
[1672758906726,73.83682442,12.642,12.621,57.2617066]
[1672758907054,130.07744623,12.642,12.621,57.2617066]
[1672758907268,5.46999842,12.64,12.63,5.39]
[1672758907474,73.83682442,12.639,12.63,26.98]
[1672758907684,130.07744623,12.639,12.621,57.2617066]
[1672758908103,30.0,12.637,12.621,57.2617066]
[1672758908424,73.83682442,12.636,12.621,57.2617066]
[1672758908952,130.07744623,12.636,12.62,26.93]
[1672758909146,385.83682442,12.622,12.621,59.49]
[1672758909565,385.83682442,12.622,12.612,59.53]
[1672758909775,385.83682442,12.622,12.613,30.0]
[1672758910098,73.83682442,12.638,12.614,59.52]
[1672758910308,73.83682442,12.638,12.63,5.34]
[1672758910513,5.46999842,12.64,12.63,5.34]
[1672758911684,30.0,12.638,12.62,5.37]
[1672758911994,359.68923026,12.637,12.611,59.53]
[1672758912187,401.87251874,12.637,12.61,5.42]
[1672758912394,359.68923026,12.637,12.6,5.39]
[1672758912609,245.0,12.633,12.6,5.39]
[1672758912849,245.0,12.629,12.595,130.60753066]
[1672758913028,106.08438779,12.627,12.606,30.19999999]
[1672758913235,388.08438779,12.607,12.606,30.19999999]
[1672758914106,312.0,12.607,12.606,30.19999999]
[1672758914505,388.08438779,12.607,12.606,30.19999999]
[1672758914927,75.69483226,12.607,12.606,0.00999999]
[1672758915149,75.69483226,12.623,12.606,0.00999999]
[1672758915358,30.0,12.622,12.61,4.39]
[1672758915547,75.69483226,12.621,12.61,4.39]
[1672758915764,75.69483226,12.621,12.61,25.94]
[1672758916498,75.69483226,12.621,12.61,5.36]
[1672758916722,30.0,12.62,12.606,0.00999999]
[1672758916920,75.69483226,12.619,12.606,0.00999999]
[1672758917137,30.0,12.618,12.6,23.47999999]
[1672758917459,75.69483226,12.617,12.61,5.38]
[1672758917673,75.69483226,12.621,12.611,59.53]
[1672758919158,387.69483226,12.612,12.611,59.53]
[1672758919567,387.69483226,12.612,12.602,59.58]
[1672758919787,387.69483226,12.612,12.601,59.58]
[1672758920000,105.58610122,12.621,12.601,59.58]
[1672758920326,105.58610122,12.621,12.61,27.03]
[1672758920513,75.58610122,12.621,12.61,27.03]
[1672758921049,75.4775644,12.621,12.611,59.53]
[1672758921264,75.4775644,12.621,12.61,27.03]
[1672758921474,258.2064633,12.622,12.61,27.03]
[1672758921677,30.0,12.621,12.61,27.03]
[1672758921898,29.88756875,12.621,12.61,27.03]
[1672758922099,78.82561792,12.621,12.61,27.03]
[1672758922423,41.7067483,12.62,12.61,27.03]
[1672758922632,78.82561792,12.621,12.61,27.03]
[1672758922845,86.21804917,12.619,12.61,27.03]
[1672758923039,43.29138177,12.618,12.61,5.44]
[1672758923248,99.50001431,12.618,12.61,27.03]
[1672758923470,30.06323438,12.619,12.61,27.03]
[1672758924106,56.09996553,12.618,12.61,27.03]
[1672758924727,43.06470395,12.617,12.61,27.03]
[1672758924939,56.09996553,12.618,12.61,27.03]
[1672758925153,56.19921473,12.616,12.61,5.4]
[1672758925477,43.85348852,12.615,12.61,5.4]
[1672758925885,56.19921473,12.614,12.6,23.47999999]
[1672758926082,44.78017882,12.613,12.601,59.58]
[1672758926293,0.06323438,12.619,12.601,59.58]
[1672758926519,0.06323438,12.619,12.61,10.71]
[1672758926734,0.06323438,12.619,12.611,59.53]
[1672758926921,0.06323438,12.619,12.61,10.71]
[1672758927138,0.06323438,12.619,12.61,80.77]
[1672758927983,4.413e-05,12.619,12.611,59.53]
[1672758928297,5.40676404,12.621,12.611,59.53]
[1672758928948,312.0,12.612,12.611,59.53]
[1672758929376,312.0,12.612,12.602,30.0]
[1672758929603,312.0,12.612,12.603,59.57]
[1672758929994,5.40676404,12.621,12.612,31.19999999]
[1672758930321,5.40676404,12.621,12.613,59.52]
[1672758930520,5.40676404,12.621,12.613,54.52]
[1672758930941,5.29826885,12.621,12.613,54.52]
[1672758931355,215.24517948,12.622,12.612,31.19999999]
[1672758932424,215.24517948,12.622,12.612,30.80843462]
[1672758933363,215.24517948,12.622,12.613,59.52]
[1672758935871,215.24517948,12.622,12.618,386.82240198]
[1672758936091,859.91103269,12.623,12.619,89.49]
[1672758936308,667.04079344,12.623,12.619,225.93976985]
[1672758936505,667.04079344,12.623,12.619,337.90468743]
[1672758936714,211.7454,12.663,12.619,337.90468743]
[1672758936715,114.8888,12.663,12.62,68.47863796]
[1672758936921,114.8888,12.663,12.631,135.95648401]
[1672758937146,114.8888,12.663,12.632,59.42]
[1672758937358,114.8888,12.663,12.633,137.4862588]
[1672758937553,114.8888,12.663,12.635,138.39079363]
[1672758937871,350.4061408,12.644,12.637,134.02360772]
[1672758938090,328.5461408,12.644,12.638,59.4]
[1672758938287,312.2061408,12.644,12.637,134.02360772]
[1672758938496,215.56388969,12.644,12.639,133.82933826]
[1672758938818,115.40386122,12.644,12.641,30.0]
[1672758939027,24.4295,12.671,12.643,30.0]
[1672758939247,19.4295,12.671,12.66,5.38]
[1672758939441,19.4295,12.671,12.66,166.98]
[1672758939859,19.4295,12.671,12.66,166.48]
[1672758940076,30.0,12.695,12.662,30.0]
[1672758940310,59.13,12.694,12.664,30.0]
[1672758940516,30.0,12.697,12.66,358.73732765]
[1672758940517,59.12,12.696,12.68,5.36]
[1672758940734,29.89084045,12.693,12.67,10.8]
[1672758940945,59.14,12.692,12.68,5.39]
[1672758941467,245.0,12.718,12.681,59.19]
[1672758941680,59.02,12.719,12.68,75.56]
[1672758941681,25.0,12.699,12.69,26.97]
[1672758942002,312.0,12.691,12.69,5.37]
[1672758942217,312.0,12.691,12.68,26.99]
[1672758942739,312.0,12.691,12.68,80.95]
[1672758943476,312.0,12.691,12.68,27.03]
[1672758944310,312.0,12.691,12.68,80.99]
[1672758944624,312.0,12.691,12.68,27.03]
[1672758944818,312.0,12.691,12.681,59.19]
[1672758945572,312.0,12.691,12.68,27.03]
[1672758945891,312.0,12.691,12.68,80.93]
[1672758946495,312.0,12.691,12.681,30.0]
[1672758946711,312.0,12.691,12.68,80.93]
[1672758946712,312.0,12.691,12.682,59.19]
[1672758946922,25.0,12.699,12.682,30.0]
[1672758947144,25.0,12.699,12.69,26.97]
[1672758947572,25.0,12.699,12.69,80.81]
[1672758948602,25.0,12.699,12.69,26.93]
[1672758949130,25.0,12.699,12.69,80.85]
[1672758949975,312.0,12.691,12.69,80.85]
[1672758950192,312.0,12.691,12.681,59.19]
[1672758950510,312.0,12.691,12.68,26.98]
[1672758950827,312.0,12.691,12.68,80.41]
[1672758951229,312.0,12.691,12.681,59.19]
[1672758953550,15.0,12.699,12.691,40.9369967]
[1672758954196,30.0,12.71,12.691,40.9369967]